[Event "Presidents Day GM-Norm 2024"]
[Site "Santa Clara"]
[Date "2024.02.16"]
[Round "1.1"]
[White "Deng, Henry"]
[Black "Sathish, Pranav"]
[Result "1/2-1/2"]
[ECO "C50"]
[WhiteElo "2281"]
[BlackElo "2357"]
[Annotator "TA"]
[PlyCount "62"]
[EventDate "2024.02.13"]
[EventType "tourn"]
[EventCountry "USA"]
[SourceTitle "playchess.com"]
[Source "ChessBase"]
[SourceQuality "1"]
[TimeControl "5400+30"]

{[%evp 11,62,5,12,8,12,10,0,5,10,13,9,8,20,14,8,12,25,11,25,7,31,15,10,0,0,0,60,0,0,0,0,0,0,0,0,0,0,0,0,0,0,0,27,0,6,0,0,0,0,0,0,0,22]} 1. e4 {[%emt 0:00:01]} e5 {[%emt 0:00:21]} 2. Nf3 {[%emt 0:00:18]} Nc6 {[%emt 0:00:09]} 3. Bc4 {[%emt 0:00:23]} Bc5 {[%emt 0:00:12]} 4. Nc3 {[%emt 0:00:14]} Nf6 {[%emt 0:00:20]} 5. d3 {[%emt 0:00:03]} h6 {[%emt 0:00:05]} 6. a3 {[%emt 0:00:37]} a6 {[%emt 0:00:19]} 7. Be3 {[%emt 0:00:33]} d6 {[%emt 0:00:20]} 8. O-O {[%emt 0:00:30]} O-O {[%emt 0:00:42]} 9. Bxc5 {[%emt 0:00:43]} dxc5 {[%emt 0:00:01]} 10. Nd5 {[%emt 0:00:15]} Be6 {[%emt 0:01:01]} 11. Ne3 {[%emt 0:00:37]} Re8 {[%emt 0:01:39]} 12. Bxe6 {[%emt 0:03:19]} Rxe6 {[%emt 0:00:52]} 13. g3 {[%emt 0:01:00]} g6 {[%emt 0:04:26]} 14. Kg2 {[%emt 0:03:11]} Qd7 {[%emt 0:01:59]} 15. Nd2 {[%emt 0:02:41]} Nd4 {[%emt 0:02:37]} 16. f4 {[%emt 0:08:43]} exf4 {[%emt 0:05:02]} 17. gxf4 {[%emt 0:06:23]} Rd8 {[%emt 0:00:55][%cal Od4c2]} 18. Kh1 {[%emt 0:04:11]} Qc6 {[%emt 0:08:57]} (18... Nxc2 $11 19. Qxc2 Qxd3) 19. f5 {[%emt 0:09:29]} (19. c3 Nf5 20. Nxf5 gxf5 $19) (19. Rg1 $14) 19... Nxf5 {[%emt 0:08:59]} 20. Nxf5 {[%emt 0:00:42]} gxf5 {[%emt 0:00:14]} 21. Rxf5 {[%emt 0:00:28] Qf3 is the strong threat.} Nxe4 $1 {[%emt 1:01:50]} 22. Nxe4 {[%emt 0:11:22]} Rxe4 {[%emt 0:00:00][%cal Re4e1] [#]} 23. Qf3 {[%emt 0:01:28]} Re6 {[%emt 0:00:00]} 24. Rg1+ {[%emt 0:00:27]} Kh8 $1 {[%emt 0:00:00]} 25. Qxc6 {[%emt 0:00:44]} Rxc6 {[%emt 0:00:00]} 26. Rxf7 {[%emt 0:00:05]} Rg8 {[%emt 0:00:00] Prevents Rgg7.} 27. Rxg8+ {[%emt 0:03:06]} Kxg8 $11 {[%emt 0:00:00] KR-KR. The position is equal.} 28. Rd7 {[%emt 0:00:10]} c4 {[%emt 0:00:00]} 29. d4 {[%emt 0:06:50]} Rd6 {[%emt 0:00:00]} 30. Rxc7 {[%emt 0:03:18]} Rxd4 {[%emt 0:00:00]} 31. Rxb7 {[%emt 0:00:03]} Rd1+ {[%emt 0:00:00] A balanced but interesting game.   Weighted Error Value: White=0.08 (flawless) /Black=0.08 (flawless) .  Mistake:       	White=1     	Black=1      Inaccurate:     	---       	Black=1      OK:         	White=6     	Black=9      Best:        	White=1     	---        Strong:       	---       	Black=2} 1/2-1/2

[Event "Presidents Day GM-Norm 2024"]
[Site "Santa Clara"]
[Date "2024.02.16"]
[Round "1.2"]
[White "Stearman, Josiah"]
[Black "Wang, Isaac"]
[Result "1-0"]
[ECO "B42"]
[WhiteElo "2455"]
[BlackElo "2316"]
[Annotator "TA"]
[PlyCount "85"]
[EventDate "2024.02.13"]
[EventType "tourn"]
[EventCountry "USA"]
[SourceTitle "playchess.com"]
[Source "ChessBase"]
[SourceQuality "1"]
[TimeControl "5400+30"]

{[%evp 13,85,22,41,47,46,33,40,-2,18,14,44,0,12,0,7,0,2,0,0,0,9,0,0,-67,32,27,41,41,54,54,83,40,50,55,50,40,28,34,28,18,22,22,36,26,40,30,82,75,73,64,81,69,76,77,98,6,66,38,44,74,82,94,100,83,78,93,267,275,416,397,588,572,759,716]} 1. e4 {[%emt 0:00:05]} c5 {[%emt 1:31:00]} 2. Nf3 {[%emt 0:00:09]} e6 {[%emt 0:00:00]} 3. d4 {[%emt 0:00:07]} cxd4 {[%emt 0:00:00]} 4. Nxd4 {[%emt 0:00:05]} a6 {[%emt 0:00:00]} 5. Bd3 {[%emt 0:00:15]} Bc5 {[%emt 0:00:00]} 6. Nb3 {[%emt 0:00:05]} Ba7 {[%emt 0:00:00]} 7. Qe2 {[%emt 0:00:08]} d6 {[%emt 0:00:00]} 8. Be3 {[%emt 0:01:08]} Bxe3 {[%emt 0:03:30]} 9. Qxe3 {[%emt 0:00:08]} Nc6 {[%emt 0:00:00]} 10. N1d2 {[%emt 0:04:48] White is slightly better.} Nge7 {[%emt 0:00:00]} 11. c3 {[%emt 0:02:04]} O-O {[%emt 0:00:00]} 12. O-O {[%emt 0:00:14]} e5 {[%emt 0:00:00]} 13. Rfd1 {[%emt 0:01:31]} Be6 {[%emt 0:00:00]} 14. Nc4 {[%emt 0:01:58]} b5 {[%emt 0:00:00]} 15. Nb6 {[%emt 0:00:11]} Rb8 {[%emt 0:00:00]} 16. Nd5 {[%emt 0:00:09]} Ng6 {[%emt 0:00:00]} 17. Bc2 {[%emt 0:00:33]} Nce7 {[%emt 0:00:00]} 18. a4 {[%emt 0:04:13]} (18. Nxe7+ $11 Qxe7 19. g3) 18... Nxd5 {[%emt 0:00:00]} (18... bxa4 $1 $15 19. Rxa4 Nf4) 19. exd5 $14 {[%emt 0:05:47]} Bd7 {[%emt 0:00:00]} 20. axb5 {[%emt 0:02:27]} Bxb5 {[%emt 0:00:00]} 21. Bxg6 {[%emt 0:02:36]} fxg6 {[%emt 0:00:00]} 22. Na5 {[%emt 0:01:53] White is more active.} Qb6 {[%emt 0:00:00]} 23. Qxb6 {[%emt 0:01:23]} Rxb6 {[%emt 0:00:00]} 24. c4 {[%emt 0:04:09]} Bd7 {[%emt 0:00:00]} 25. b3 {[%emt 0:02:56]} g5 {[%emt 0:00:00]} 26. Rd2 {[%emt 0:01:33]} h5 {[%emt 0:00:00]} 27. Kf1 {[%emt 0:00:07]} Kh7 {[%emt 0:00:00]} 28. Ke2 {[%emt 0:02:00]} g4 {[%emt 0:00:00]} 29. Kd3 {[%emt 0:01:47]} Bf5+ {[%emt 0:00:00]} (29... h4 $11 {remains equal.}) 30. Kc3 $16 {[%emt 0:00:38][%cal Oc4c5]} Be4 {[%emt 0:00:00]} 31. Rg1 {[%emt 0:01:58]} h4 {[%emt 0:00:00]} 32. Re2 {[%emt 0:00:19]} Bg6 {[%emt 0:00:00]} 33. b4 {[%emt 0:01:26]} Rf4 {[%emt 0:00:00]} 34. Nb3 {[%emt 0:08:14]} (34. Ra1 $16) 34... Rb7 {[%emt 0:00:00]} ({Black should play} 34... Rf8 $1 $11) 35. Nd2 {[%emt 0:03:05]} Rd4 {[%emt 0:00:00]} 36. Re3 {[%emt 0:00:37] Prevents Rd3+.} Rc7 {[%emt 0:00:00]} 37. Ra1 {[%emt 0:00:52]} Rxd5 {[%emt 0:00:00]} 38. Rxa6 {[%emt 0:01:20]} Rd4 {[%emt 0:00:00]} 39. b5 {[%emt 0:00:35][%cal Bb4b5,Bb5b6][%mdl 32]} Bf7 $2 {[%emt 0:03:31] [#] A mistake that costs the game.} (39... Rc8 $16) 40. Rc6 $1 $18 {[%emt 0:03:27]} Ra7 {[%emt 0:01:22]} (40... Rd7 $142 41. b6 Bg6) 41. b6 {[%emt 0:03:45]} ({Weaker is} 41. Ra6 Rb7 42. g3 Rxd2 43. Kxd2 Bxc4 44. Rxd6 (44. gxh4 Rxb5 45. Rxd6 Bf7 $18) 44... hxg3 45. Rxg3 Bxb5 46. Rxg4 Re7 $18) 41... Be8 {[%emt 0:05:47]} (41... Rd7 $142 42. Rc7 Rxc7 43. bxc7 Be6) 42. Rc8 {[%emt 0:01:14]} Re7 {[%emt 0:01:36]} 43. Rc7 {[%emt 0:04:26] Weighted Error Value: White=0.13 (very precise) /Black=0.36.  Loses game:     	---       	Black=1      Mistake:       	White=2     	Black=5      Inaccurate:     	White=4     	Black=3      OK:         	White=10    	Black=8      Best:        	White=6     	---        Strong:       	White=1     	---} 1-0

[Event "Presidents Day GM-Norm 2024"]
[Site "Santa Clara"]
[Date "2024.02.16"]
[Round "1.3"]
[White "Budisavljevic, Luka"]
[Black "Atwell, Rose"]
[Result "1-0"]
[ECO "D10"]
[WhiteElo "2475"]
[BlackElo "2104"]
[Annotator "TA"]
[PlyCount "65"]
[EventDate "2024.02.13"]
[EventType "tourn"]
[EventCountry "USA"]
[SourceTitle "playchess.com"]
[Source "ChessBase"]
[SourceQuality "1"]
[TimeControl "5400+30"]

{[%evp 9,65,-6,0,-12,-23,-17,-28,-45,-25,-36,8,-4,45,45,64,50,75,0,0,0,0,-32,-47,-39,-46,-44,42,18,6,0,27,10,204,147,258,272,562,561,675,715,721,712,705,706,678,670,669,647,647,645,751,791,756,781,1054,1139,1139,1129]} 1. d4 {[%emt 0:00:03]} d5 {[%emt 0:00:04]} 2. c4 {[%emt 0:00:10]} c6 {[%emt 0:00:05]} 3. e3 {[%emt 0:00:35]} Bf5 {[%emt 0:00:51]} 4. Nc3 {[%emt 0:00:14]} e6 {[%emt 0:01:51]} 5. Qb3 {[%emt 0:00:15]} Qb6 {[%emt 0:01:36]} 6. c5 {[%emt 0:00:17]} Qc7 {[%emt 0:01:02]} 7. e4 {[%emt 0:00:27]} dxe4 {[%emt 0:04:14] Hoping for ...e5.} 8. Bf4 {[%emt 0:00:39] Black has an edge.} Qc8 {[%emt 0:02:04]} 9. g4 {[%emt 0:00:06]} Bg6 {[%emt 0:01:05]} 10. h4 {[%emt 0:00:36]} h5 {[%emt 0:02:36]} (10... h6 $1 $11 {was preferrable.}) 11. g5 $14 {[%emt 0:05:09]} Nd7 {[%emt 0:05:41][%cal Oe6e5]} 12. Bg2 $1 {[%emt 0:07:42] White is much more active.} e5 {[%emt 0:10:54] [#]} 13. Bxe5 {[%emt 0:03:06]} (13. Bxe4 $1 $16 Bxe4 14. Nxe4 exf4 15. O-O-O) 13... Nxe5 $11 {[%emt 0:00:23]} 14. dxe5 {[%emt 0:00:03]} Bxc5 {[%emt 0:05:51]} 15. Nxe4 {[%emt 0:01:08]} ({Much weaker is} 15. Bxe4 Ne7 16. Bxg6 Nxg6 $17) 15... Bxe4 {[%emt 0:00:59]} 16. Bxe4 {[%emt 0:00:02] Black must now prevent 0-0-0.} Qg4 {[%emt 0:02:55]} 17. Qf3 {[%emt 0:15:51][%cal Oe4c6]} Qe6 {[%emt 0:05:19]} ({Black should try} 17... Bb4+ $15 18. Kf1 Rd8) 18. O-O-O $14 {[%emt 0:12:41]} Ne7 $1 $132 {[%emt 0:03:00][%mdl 2048] Black puts up resistance} 19. Kb1 {[%emt 0:07:04]} Qxe5 {[%emt 0:05:43]} 20. Nh3 {[%emt 0:01:31][%cal Bg1h3,Bh3g5,Bg5f7][%mdl 32]} (20. g6 $5 Nxg6 (20... fxg6 21. Nh3 $16) 21. Bxc6+ Kf8 (21... bxc6 $2 {is the wrong capture.} 22. Qxc6+ Kf8 23. Qxa8+ Ke7 24. Qb7+ Kf6 25. Qc6+ Qe6 26. Qxc5 $18) 22. Bd5 $11) 20... Bb4 {[%emt 0:06:51] Prevents Rhe1. Black cannot hold the game after this.} (20... Bd4 $1 $11) 21. a3 {[%emt 0:07:01][%mdl 1024] White has strong compensation.} Ba5 {[%emt 0:01:23]} (21... Bd6 $16) 22. b4 $18 {[%emt 0:00:26][%cal Oh1e1] aiming for Rhe1!} Bc7 $2 {[%emt 0:01:44]} (22... Rd8) 23. Rhe1 {[%emt 0:00:28] White is clearly winning.} Qb5 {[%emt 0:05:40]} 24. g6 {[%emt 0:07:26][%csl Gg6][%cal Rf3f7]} O-O {[%emt 0:03:38][%cal Be8g8,Bg8h8,Bh8h7,Bh7g6][%mdl 32]} 25. Ng5 {[%emt 0:04:49]} fxg6 {[%emt 0:01:08]} 26. Qb3+ {[%emt 0:00:01]} Kh8 {[%emt 0:00:26]} 27. Nf7+ {[%emt 0:02:11]} Kh7 {[%emt 0:01:51]} 28. Bd3 {[%emt 0:01:33][%cal Oe1e7]} Qd5 {[%emt 0:00:44] [#]} 29. Bxg6+ $1 {[%emt 0:00:05][%mdl 512]} Kxg6 {[%emt 0:00:43]} (29... Nxg6 30. Rxd5) 30. Rxd5 {[%emt 0:00:05]} Nxd5 {[%emt 0:00:21] [#]} 31. Qf3 $1 {[%emt 0:05:07] Threatening mate with Qe4+.} Nf4 {[%emt 0:03:19] [#]} (31... Nc3+ 32. Qxc3) 32. Re7 $1 {[%emt 0:00:43] White threatens Qe4+ and mate.} Rxf7 {[%emt 0:00:45]} 33. Qg3+ {[%emt 0:00:13] Weighted Error Value: White=0.11 (very precise) /Black=0.61.  Loses game:     	---       	Black=1      Mistake:       	White=1     	Black=4      Inaccurate:     	White=1     	Black=2      OK:         	White=7     	Black=5      Best:        	White=3     	Black=1      Strong:       	White=1     	Black=1} 1-0

[Event "Presidents Day GM-Norm 2024"]
[Site "Santa Clara"]
[Date "2024.02.16"]
[Round "1.4"]
[White "Harsha Bharathakoti"]
[Black "Atanasov, Anthony"]
[Result "1-0"]
[ECO "D35"]
[WhiteElo "2565"]
[BlackElo "2384"]
[Annotator "TA RC"]
[PlyCount "115"]
[EventDate "2024.02.13"]
[EventType "tourn"]
[EventCountry "USA"]
[SourceTitle "playchess.com"]
[Source "ChessBase"]
[SourceQuality "1"]
[TimeControl "5400+30"]

{[%evp 44,115,182,0,0,0,0,0,0,0,0,0,0,-18,66,0,35,0,0,0,203,177,183,180,191,185,195,83,656,650,1114,1066,1183,1153,1296,1284,2227,2035,1802,1286,2400,2046,4694,3061,2130,1435,29985,29986,29986,29985,29980,906,1256,895,2669,1625,29985,29972,29972,29973,29973,29974,29968,29969,29974,29975,29978,29979,29980,29981,29987,29988,29988,29989]} 1. d4 {[%emt 0:00:11]} d5 {[%emt 0:00:08]} 2. c4 {[%emt 0:00:41]} e6 {[%emt 0:00:09]} 3. Nf3 {[%emt 1:31:08]} Nf6 {[%emt 0:00:10]} 4. Nc3 {[%emt 0:03:02]} Be7 {[%emt 0:00:46]} 5. cxd5 {[%emt 0:05:15]} exd5 {[%emt 0:00:17]} 6. Bf4 {[%emt 0:00:19]} c6 {[%emt 0:01:40] 6...c6 is better than 6...0-0.} 7. h3 {[%emt 1:22:52] D35: Queen's Gambit Declined: Exchange Variation.} Bf5 {[%emt 0:02:34]} 8. g4 {[%emt 0:06:04]} Bg6 {[%emt 0:09:44]} 9. Ne5 {[%emt 0:07:00]} Qb6 $146 {[%emt 0:01:28]} ({Predecessor:} 9... Nbd7 10. Nxg6 hxg6 11. Bg2 Nb6 12. Qb3 Bd6 13. Bg5 Qd7 14. Bxf6 gxf6 15. a4 Rb8 {½-½ Lima Filho,G-Amancio,A Fortaleza Alves Memorial 15th 2011 (4)}) 10. Bc1 {[%emt 0:17:59]} Bb4 {[%emt 0:17:39]} 11. Nxg6 {[%emt 0:07:17]} hxg6 {[%emt 0:00:10]} 12. Bg2 {[%emt 0:01:14]} Ne4 {[%emt 0:08:07]} 13. Qd3 {[%emt 0:03:31]} f5 {[%emt 0:01:05]} 14. gxf5 {[%emt 0:42:19]} gxf5 {[%emt 0:00:14]} 15. f3 {[%emt 0:00:02]} Nd6 {[%emt 0:10:47]} 16. Bf4 {[%emt 0:10:18]} O-O {[%emt 0:00:58]} 17. a3 {[%emt 0:04:38]} Bxc3+ {[%emt 0:00:27]} 18. bxc3 {[%emt 0:00:04]} Qd8 {[%emt 0:07:54]} 19. h4 {[%emt 0:00:48]} Nc4 {[%emt 0:01:18]} 20. Kf2 {[%emt 0:03:11]} Nd7 {[%emt 0:12:27]} 21. h5 {[%emt 0:01:48]} Qe7 {[%emt 0:04:41]} 22. Rag1 {[%emt 0:04:37]} Nf6 {[%emt 0:01:03] [#]} 23. Bf1 $2 {[%emt 0:00:42]} (23. Qxf5 $2 Rae8 (23... Nxa3 $2 24. h6 $18) (23... Ne4+ 24. fxe4 Rxf5 25. exf5 $17) 24. Qd3 Ng4+ (24... Qxa3 25. h6 $16) 25. fxg4 Qg5 $19 (25... Rxf4+ 26. Bf3 $17)) (23. e3 $1 $18) 23... Ne4+ $1 $11 {[%emt 0:18:14]} 24. Kg2 {[%emt 0:12:17]} (24. fxe4 $2 fxe4 25. Qg3 Rxf4+ 26. Qxf4 Rf8 $19 (26... Nxa3 $2 27. Bh3 $18)) 24... Ng5 $1 {[%emt 0:03:03]} 25. Rh2 {[%emt 0:01:45]} Ne6 {[%emt 0:00:10]} (25... Nxa3 $2 26. h6 (26. Kh1 Ne6 $18) 26... g6 27. Kh1 $18) 26. Bc1 {[%emt 0:00:17]} Rf6 {[%emt 0:04:14]} ({Don't play} 26... Nxa3 27. Kh1 Nb5 28. h6 $14 (28. e4 fxe4 29. fxe4 Nd6 $11)) 27. Kh1 {[%emt 0:01:11]} Raf8 {[%emt 0:00:55]} 28. a4 {[%emt 0:03:33]} Qc7 {[%emt 0:00:47]} (28... Qf7 $11) 29. Qd1 {[%emt 0:06:59]} (29. e4 $1 $14 fxe4 30. fxe4) 29... b5 {[%emt 0:01:14]} 30. axb5 {[%emt 0:01:00]} cxb5 {[%emt 0:01:41]} 31. Qe1 {[%emt 0:01:40]} Kf7 $2 {[%emt 0:01:22]} (31... R8f7 $11) 32. e4 {[%emt 0:00:54]} fxe4 {[%emt 0:00:01]} 33. fxe4 {[%emt 0:00:03]} dxe4 {[%emt 0:00:06]} 34. Qxe4 {[%emt 0:00:46]} Nd6 {[%emt 0:00:08] [#]} 35. Qg4 {[%emt 0:01:52]} (35. Qe5 $1 $18 {is the precise move to win.} Rf5 36. Qe1) 35... Ke8 $2 {[%emt 0:01:45][%mdl 8192]} (35... Kg8 $16) 36. Re2 $18 {[%emt 0:00:33]} Qc6+ {[%emt 0:00:43]} 37. Bg2 {[%emt 0:00:51]} Qc4 {[%emt 0:00:01]} 38. Rge1 {[%emt 0:01:02]} Kf7 {[%emt 0:00:54]} 39. Re5 {[%emt 0:00:43]} Re8 {[%emt 0:00:35]} 40. Bd5 {[%emt 0:01:11]} Rf1+ {[%emt 0:00:01]} 41. Kg2 {[%emt 0:00:18]} Rxe1 {[%emt 0:00:05]} 42. Qf3+ {[%emt 0:00:50]} Kg8 {[%emt 0:00:32]} 43. Rxe1 {[%emt 0:00:10]} Qc8 {[%emt 0:00:04]} 44. Qg4 {[%emt 0:00:21]} Qxc3 {[%emt 0:01:06]} 45. Rxe6 {[%emt 0:00:11]} Kh8 {[%emt 0:00:05]} 46. Rxe8+ {[%emt 0:00:34]} Nxe8 {[%emt 0:00:01]} 47. Bg5 {[%emt 0:01:14]} (47. Qg6 $142 Qe1 48. h6 Qe2+ 49. Kh3 Qf1+ 50. Bg2 Qf8 51. hxg7+ Qxg7 52. Qxe8+ Qg8 53. Qe5+ (53. Qxb5 Qh7+ 54. Kg3 Qg7+ 55. Qg5 Kh7 56. Be4+ Kg8 57. d5 Kf8 58. Qxg7+ Kxg7) 53... Qg7 54. Bb2 (54. Qxb5 Qf6 55. Qb8+ Kg7 56. Qxa7+ Qf7)) 47... Qc2+ $18 {[%emt 0:01:58]} 48. Kh3 {[%emt 0:00:26]} Nd6 {[%emt 0:00:28]} 49. h6 {[%emt 0:00:35]} Qf5 {[%emt 0:00:40]} 50. hxg7+ {[%emt 0:00:20]} Kxg7 {[%emt 0:00:02]} 51. Bf4+ {[%emt 0:00:22]} Qxg4+ {[%emt 0:00:24]} 52. Kxg4 {[%emt 0:00:03]} Nc8 {[%emt 0:00:32]} 53. Kf5 {[%emt 0:01:00]} a5 {[%emt 0:00:07]} 54. Ke6 {[%emt 0:00:39]} b4 {[%emt 0:01:24]} 55. Bb3 {[%emt 0:00:24]} Nb6 {[%emt 0:00:05]} 56. Bc7 {[%emt 0:00:15]} a4 {[%emt 0:00:02]} 57. Bxb6 {[%emt 0:00:10]} axb3 {[%emt 0:00:04]} 58. d5 {[%emt 0:00:01]} 1-0

[Event "Presidents Day GM-Norm 2024"]
[Site "Santa Clara"]
[Date "2024.02.16"]
[Round "2.1"]
[White "Sathish, Pranav"]
[Black "Delgado Ramirez, Neuris"]
[Result "0-1"]
[ECO "A41"]
[WhiteElo "2357"]
[BlackElo "2517"]
[Annotator "RC"]
[PlyCount "90"]
[EventDate "2024.02.13"]
[EventType "tourn"]
[EventCountry "USA"]
[SourceTitle "playchess.com"]
[Source "ChessBase"]
[SourceQuality "1"]
[TimeControl "5400+30"]

1. e4 {[%emt 0:00:01]} d6 {[%emt 0:03:49]} 2. d4 {[%emt 0:01:20]} Nf6 {[%emt 0:00:07]} 3. Nc3 {[%emt 0:00:03]} c6 {[%emt 0:00:14]} 4. Nf3 {[%emt 0:00:08]} Bg4 {[%emt 0:00:09]} 5. h3 {[%emt 0:01:09]} Bh5 {[%emt 0:01:09]} 6. g4 {[%emt 0:05:06]} Bg6 {[%emt 0:00:04]} 7. Qe2 {[%emt 0:00:09]} e6 {[%emt 0:00:07]} 8. Bg2 {[%emt 0:01:20]} Be7 {[%emt 0:01:22]} 9. h4 {[%emt 0:03:30]} h5 {[%emt 0:01:19]} 10. g5 {[%emt 0:00:03]} Nfd7 {[%emt 0:00:08]} 11. d5 {[%emt 0:01:53]} exd5 {[%emt 0:04:44]} 12. exd5 {[%emt 0:00:08]} O-O {[%emt 0:00:04]} 13. dxc6 {[%emt 0:02:58]} Nxc6 {[%emt 0:00:14]} 14. Be3 {[%emt 0:00:08]} Rc8 {[%emt 0:01:32]} 15. O-O {[%emt 0:06:54]} Re8 {[%emt 0:00:35]} 16. Nd5 {[%emt 0:03:02]} Bf8 {[%emt 0:00:12]} 17. Nf4 {[%emt 0:06:07]} Bf5 {[%emt 0:00:51]} 18. g6 {[%emt 0:01:37]} fxg6 {[%emt 0:02:35]} 19. Ng5 {[%emt 0:06:02]} Nce5 {[%emt 1:20:45]} 20. Bd5+ {[%emt 0:58:52]} Kh8 {[%emt 0:00:30]} 21. Bf7 {[%emt 0:00:30]} Bg4 {[%emt 0:00:30]} 22. f3 {[%emt 0:00:00]} Bf5 {[%emt 0:00:00]} 23. Bxg6 {[%emt 0:01:00]} Nxg6 {[%emt 0:00:00]} 24. Nf7+ {[%emt 0:00:00]} Kh7 {[%emt 0:00:00]} 25. Nxd8 {[%emt 0:00:00]} Nxf4 {[%emt 0:00:00]} 26. Qb5 {[%emt 0:00:00]} Re5 {[%emt 0:00:00]} 27. Qxb7 {[%emt 0:00:00]} Nh3+ {[%emt 0:00:00]} 28. Kh1 {[%emt 0:00:00]} Rxd8 {[%emt 0:00:00]} 29. Bd4 {[%emt 0:00:00]} Ree8 {[%emt 0:00:00]} 30. Qd5 {[%emt 0:00:00]} Bg6 {[%emt 0:00:00]} 31. Rae1 {[%emt 0:00:00]} Rc8 {[%emt 0:00:00]} 32. c3 {[%emt 0:00:00]} Nf4 {[%emt 0:00:00]} 33. Qb7 {[%emt 0:00:00]} Nc5 {[%emt 0:00:00]} 34. Qxa7 {[%emt 0:00:00]} Ne2 {[%emt 0:00:00]} 35. Kg2 {[%emt 0:00:00]} Nd3 {[%emt 0:00:00]} 36. Be3 {[%emt 0:00:00]} Ra8 {[%emt 0:00:00]} 37. Qb6 {[%emt 0:00:00]} Rab8 {[%emt 0:00:00]} 38. Qxb8 {[%emt 0:00:00]} Nxe1+ {[%emt 0:00:00]} 39. Rxe1 {[%emt 0:00:00]} Rxb8 40. Rxe2 {[%emt 0:00:00]} Be7 {[%emt 0:00:00]} 41. Bf2 {[%emt 0:00:00]} Bf6 {[%emt 0:00:00]} 42. a4 {[%emt 0:00:00]} Ra8 {[%emt 0:00:00]} 43. Re6 {[%emt 0:00:00]} Ra6 {[%emt 0:00:00]} 44. a5 {[%emt 0:00:00]} Bf7 {[%emt 0:00:00]} 45. Rxf6 {[%emt 0:00:00]} gxf6 {[%emt 0:00:00]} 0-1

[Event "Presidents Day GM-Norm 2024"]
[Site "Santa Clara"]
[Date "2024.02.16"]
[Round "2.2"]
[White "Atanasov, Anthony"]
[Black "Jiang, Lucas"]
[Result "1-0"]
[ECO "D02"]
[WhiteElo "2384"]
[BlackElo "2258"]
[Annotator "TA"]
[PlyCount "53"]
[EventDate "2024.02.13"]
[EventType "tourn"]
[EventCountry "USA"]
[SourceTitle "playchess.com"]
[Source "ChessBase"]
[SourceQuality "1"]
[TimeControl "5400+30"]

{[%evp 10,53,0,0,8,12,27,16,51,71,62,63,66,74,91,84,125,107,99,103,124,118,109,84,89,89,134,102,150,115,153,163,229,216,217,224,216,216,432,416,661,652,1033,1029,1023,1014]} 1. d4 {[%emt 0:00:02]} d5 {[%emt 0:00:14]} 2. Nf3 {[%emt 0:00:06]} Nf6 {[%emt 0:00:06]} 3. Bf4 {[%emt 0:00:08]} g6 {[%emt 0:00:07]} 4. e3 {[%emt 0:00:06]} Bg7 {[%emt 0:00:05]} 5. Nbd2 {[%emt 0:00:07]} O-O {[%emt 0:00:08]} 6. c3 {[%emt 0:00:12]} c5 {[%emt 0:02:18]} 7. Be2 {[%emt 0:00:02]} Nc6 {[%emt 0:01:39]} 8. dxc5 {[%emt 0:00:40]} Re8 {[%emt 0:16:33] The position is equal.} 9. O-O {[%emt 0:06:08]} e5 {[%emt 0:03:26]} 10. Bg3 {[%emt 0:00:02]} a5 {[%emt 0:04:27]} 11. Bb5 {[%emt 0:07:56]} Nd7 {[%emt 0:07:14]} 12. Bh4 {[%emt 0:02:05]} Qc7 {[%emt 0:03:48]} 13. e4 {[%emt 0:00:46]} Na7 {[%emt 0:02:11]} 14. Ba4 {[%emt 0:03:06]} Qxc5 {[%emt 0:03:16]} 15. exd5 {[%emt 0:10:32] Ne4 would now be deadly.} b5 {[%emt 0:06:49]} 16. Ne4 {[%emt 0:09:59]} Qb6 {[%emt 0:01:04] [#]} 17. Bc2 $36 {[%emt 0:02:55][%mdl 2048] White is really pushing.} Bb7 {[%emt 0:01:42]} 18. Bg5 {[%emt 0:01:38]} Nc8 {[%emt 0:07:14]} (18... f5 $142) 19. Be3 {[%emt 0:03:10]} Qc7 {[%emt 0:05:19]} 20. a4 {[%emt 0:08:48][%cal Ba2a4,Ba4b5][%mdl 32] White is more active.} Nd6 {[%emt 0:05:17]} (20... Ncb6 $142) 21. Nxd6 {[%emt 0:13:13]} Qxd6 {[%emt 0:00:06]} 22. axb5 {[%emt 0:00:04]} Nb6 {[%emt 0:02:59]} 23. Ng5 {[%emt 0:04:35] And now Ne4 would win.} Qd8 $2 {[%emt 0:05:26]} (23... Nc4 24. Qf3 f5) 24. Qf3 $18 {[%emt 0:06:31]} f6 {[%emt 0:05:13] [#]} (24... Bf6 $142 25. Ne4 Bg7) 25. Bb3 $1 {[%emt 0:02:07] Hoping for d6+. White is clearly winning.} a4 {[%emt 0:10:29][%cal Ba5a4,Ba4b3][%mdl 32]} (25... Nxd5 26. Rfd1) 26. d6+ {[%emt 0:03:54]} axb3 {[%emt 0:00:06]} 27. Qxb7 {[%emt 0:00:04] Weighted Error Value: White=0.07 (flawless) /Black=0.55.  Mistake:       	---       	Black=4      Inaccurate:     	---       	Black=4      OK:         	White=11    	Black=5      Best:        	---       	Black=1} 1-0